Workbook

Sheet HeroBasicEquipConfig
A1: ID | B1: eqName | D1: goldCost | E1: lv | F1: profession | G1: Type | H1: desc | J1: AttType | K1: AttTypeLab | L1: AttValue | M1: disItems | N1: count
A2: int | B2: int | D2: int | E2: int | F2: int | G2: int | H2: int | J2: int[] | K2: int[] | L2: int[] | M2: int[] | N2: int[]
A4: ID 职业x10000+ 类型x1000+ 等级 | B4: 名称 | C4: VLOOKUP 语言表中的实际值 (策划看) | D4: 升级 金币消耗 | E4: 等级 | F4: 职业 1.战士 2.法师 3.牧师 4.游侠 | G4: 装备类型 1:战靴 2:衣服 3:手套 4:头盔 5:项链 | H4: 装备描述 | I4: 品质 1:白色 2:绿色 3:蓝色 4:紫色 5:橙色 6:暗金 7:远古 | J4: 属性类型 1生命值 2攻击力 3防御力 4攻击速度 5暴击率 6暴击伤害 7闪避几率 8命中 9吸血 | K4: 动态文本描述 | L4: 标准属性值 (白色) | M4: 分解获得的道具 | N4: 对应数量 | O4: 备注
A5: =F5*10000+G5*1000+E5 -> 11010 | B5: 156 | D5: 100 | E5: 10 | F5: 1 | G5: 1 | H5: =B5 -> 156 | J5: 3 | L5: =ROUND(E5*0.7,0) -> 7 | M5: 1001 | N5: 10 | R5: 100 | S5: 50 | T5: 10 | U5: 20
A6: =F6*10000+G6*1000+E6 -> 11015 | B6: 156 | D6: 150 | E6: 15 | F6: 1 | G6: 1 | H6: =B6 -> 156 | J6: 3 | L6: =ROUND(E6*0.7,0) -> 11 | M6: 1001 | N6: 10 | R6: 150 | S6: 60 | T6: 20 | U6: 21
A7: 11020 | B7: 156 | D7: 200 | E7: 20 | F7: 1 | G7: 1 | H7: 156 | J7: 3 | L7: 14 | M7: 1001 | N7: 10 | R7: 200 | S7: 70 | T7: 30 | U7: 22
A8: 11025 | B8: 156 | D8: 250 | E8: 25 | F8: 1 | G8: 1 | H8: 156 | J8: 3 | L8: 18 | M8: 1001 | N8: 10 | R8: 250 | S8: 80 | T8: 40 | U8: 23
A9: 11030 | B9: 156 | D9: 300 | E9: 30 | F9: 1 | G9: 1 | H9: 156 | J9: 3 | L9: 21 | M9: 1001 | N9: 10 | R9: 300 | S9: 90 | T9: 50 | U9: 24
A10: 11035 | B10: 156 | D10: 350 | E10: 35 | F10: 1 | G10: 1 | H10: 156 | J10: 3 | L10: 25 | M10: 1001 | N10: 10 | R10: 350 | S10: 100 | T10: 60 | U10: 25
A11: 11040 | B11: 156 | D11: 400 | E11: 40 | F11: 1 | G11: 1 | H11: 156 | J11: 3 | L11: 28 | M11: 1001 | N11: 10 | R11: 400 | S11: 110 | T11: 70 | U11: 26
A12: 11045 | B12: 156 | D12: 450 | E12: 45 | F12: 1 | G12: 1 | H12: 156 | J12: 3 | L12: 32 | M12: 1001 | N12: 10 | R12: 450 | S12: 120 | T12: 80 | U12: 27
A13: 11050 | B13: 156 | D13: 500 | E13: 50 | F13: 1 | G13: 1 | H13: 156 | J13: 3 | L13: 35 | M13: 1001 | N13: 10 | R13: 500 | S13: 130 | T13: 90 | U13: 28
A14: 11055 | B14: 156 | D14: 550 | E14: 55 | F14: 1 | G14: 1 | H14: 156 | J14: 3 | L14: 39 | M14: 1001 | N14: 10 | R14: 550 | S14: 140 | T14: 100 | U14: 29
A15: 11060 | B15: 156 | D15: 600 | E15: 60 | F15: 1 | G15: 1 | H15: 156 | J15: 3 | L15: 42 | M15: 1001 | N15: 10 | R15: 600 | S15: 150 | T15: 110 | U15: 30
A16: 11065 | B16: 156 | D16: 650 | E16: 65 | F16: 1 | G16: 1 | H16: 156 | J16: 3 | L16: 46 | M16: 1001 | N16: 10 | R16: 650 | S16: 160 | T16: 120 | U16: 31
A17: 11070 | B17: 156 | D17: 700 | E17: 70 | F17: 1 | G17: 1 | H17: 156 | J17: 3 | L17: 49 | M17: 1001 | N17: 10 | R17: 700 | S17: 170 | T17: 130 | U17: 32
A18: 11075 | B18: 156 | D18: 750 | E18: 75 | F18: 1 | G18: 1 | H18: 156 | J18: 3 | L18: 53 | M18: 1001 | N18: 10 | R18: 750 | S18: 180 | T18: 140 | U18: 33
A19: 11080 | B19: 156 | D19: 800 | E19: 80 | F19: 1 | G19: 1 | H19: 156 | J19: 3 | L19: 56 | M19: 1001 | N19: 10 | R19: 800 | S19: 190 | T19: 150 | U19: 34
A20: 11085 | B20: 156 | D20: 850 | E20: 85 | F20: 1 | G20: 1 | H20: 156 | J20: 3 | L20: 60 | M20: 1001 | N20: 10 | R20: 850 | S20: 200 | T20: 160 | U20: 35
A21: 11090 | B21: 156 | D21: 900 | E21: 90 | F21: 1 | G21: 1 | H21: 156 | J21: 3 | L21: 63 | M21: 1001 | N21: 10 | R21: 900 | S21: 210 | T21: 170 | U21: 36
A22: 11095 | B22: 156 | D22: 950 | E22: 95 | F22: 1 | G22: 1 | H22: 156 | J22: 3 | L22: 67 | M22: 1001 | N22: 10 | R22: 950 | S22: 220 | T22: 180 | U22: 37
A23: 11100 | B23: 156 | D23: 1000 | E23: 100 | F23: 1 | G23: 1 | H23: 156 | J23: 3 | L23: 70 | M23: 1001 | N23: 10 | R23: 1000 | S23: 230 | T23: 190 | U23: 38
A24: 11105 | B24: 156 | D24: 1050 | E24: 105 | F24: 1 | G24: 1 | H24: 156 | J24: 3 | L24: 74 | M24: 1001 | N24: 10 | R24: 1050 | S24: 240 | T24: 200 | U24: 39
A25: 11110 | B25: 156 | D25: 1100 | E25: 110 | F25: 1 | G25: 1 | H25: 156 | J25: 3 | L25: 77 | M25: 1001 | N25: 10 | R25: 1100 | S25: 250 | T25: 210 | U25: 40
A26: 11115 | B26: 156 | D26: 1150 | E26: 115 | F26: 1 | G26: 1 | H26: 156 | J26: 3 | L26: 81 | M26: 1001 | N26: 10 | R26: 1150 | S26: 260 | T26: 220 | U26: 41
A27: 11120 | B27: 156 | D27: 1200 | E27: 120 | F27: 1 | G27: 1 | H27: 156 | J27: 3 | L27: 84 | M27: 1001 | N27: 10 | R27: 1200 | S27: 270 | T27: 230 | U27: 42
A28: 11125 | B28: 156 | D28: 1250 | E28: 125 | F28: 1 | G28: 1 | H28: 156 | J28: 3 | L28: 88 | M28: 1001 | N28: 10 | R28: 1250 | S28: 280 | T28: 240 | U28: 43
A29: 11130 | B29: 156 | D29: 1300 | E29: 130 | F29: 1 | G29: 1 | H29: 156 | J29: 3 | L29: 91 | M29: 1001 | N29: 10 | R29: 1300 | S29: 290 | T29: 250 | U29: 44
A30: 11135 | B30: 156 | D30: 1350 | E30: 135 | F30: 1 | G30: 1 | H30: 156 | J30: 3 | L30: 95 | M30: 1001 | N30: 10 | R30: 1350 | S30: 300 | T30: 260 | U30: 45
A31: 11140 | B31: 156 | D31: 1400 | E31: 140 | F31: 1 | G31: 1 | H31: 156 | J31: 3 | L31: 98 | M31: 1001 | N31: 10 | R31: 1400 | S31: 310 | T31: 270 | U31: 46
A32: 11145 | B32: 156 | D32: 1450 | E32: 145 | F32: 1 | G32: 1 | H32: 156 | J32: 3 | L32: 102 | M32: 1001 | N32: 10 | R32: 1450 | S32: 320 | T32: 280 | U32: 47
A33: 11150 | B33: 156 | D33: 1500 | E33: 150 | F33: 1 | G33: 1 | H33: 156 | J33: 3 | L33: 105 | M33: 1001 | N33: 10 | R33: 1500 | S33: 330 | T33: 290 | U33: 48
A34: 11155 | B34: 156 | D34: 1550 | E34: 155 | F34: 1 | G34: 1 | H34: 156 | J34: 3 | L34: 109 | M34: 1001 | N34: 10 | R34: 1550 | S34: 340 | T34: 300 | U34: 49
A35: 11160 | B35: 156 | D35: 1600 | E35: 160 | F35: 1 | G35: 1 | H35: 156 | J35: 3 | L35: 112 | M35: 1001 | N35: 10 | R35: 1600 | S35: 350 | T35: 310 | U35: 50
A36: 11165 | B36: 156 | D36: 1650 | E36: 165 | F36: 1 | G36: 1 | H36: 156 | J36: 3 | L36: 116 | M36: 1001 | N36: 10 | R36: 1650 | S36: 360 | T36: 320 | U36: 51
A37: 11170 | B37: 156 | D37: 1700 | E37: 170 | F37: 1 | G37: 1 | H37: 156 | J37: 3 | L37: 119 | M37: 1001 | N37: 10 | R37: 1700 | S37: 370 | T37: 330 | U37: 52
A38: 11175 | B38: 156 | D38: 1750 | E38: 175 | F38: 1 | G38: 1 | H38: 156 | J38: 3 | L38: =ROUND(E38*0.7,0) -> 123 | M38: 1001 | N38: 10 | R38: 1750 | S38: 380 | T38: 340 | U38: 53
A39: 11180 | B39: 156 | D39: 1800 | E39: 180 | F39: 1 | G39: 1 | H39: 156 | J39: 3 | L39: 126 | M39: 1001 | N39: 10 | R39: 1800 | S39: 390 | T39: 350 | U39: 54
A40: 11185 | B40: 156 | D40: 1850 | E40: 185 | F40: 1 | G40: 1 | H40: 156 | J40: 3 | L40: 130 | M40: 1001 | N40: 10 | R40: 1850 | S40: 400 | T40: 360 | U40: 55
A41: 11190 | B41: 156 | D41: 1900 | E41: 190 | F41: 1 | G41: 1 | H41: 156 | J41: 3 | L41: 133 | M41: 1001 | N41: 10 | R41: 1900 | S41: 410 | T41: 370 | U41: 56
A42: 11195 | B42: 156 | D42: 1950 | E42: 195 | F42: 1 | G42: 1 | H42: 156 | J42: 3 | L42: 137 | M42: 1001 | N42: 10 | R42: 1950 | S42: 420 | T42: 380 | U42: 57
A43: 11200 | B43: 156 | D43: 2000 | E43: 200 | F43: 1 | G43: 1 | H43: 156 | J43: 3 | L43: 140 | M43: 1001 | N43: 10 | R43: 2000 | S43: 430 | T43: 390 | U43: 58
A44: 11205 | B44: 156 | D44: 2050 | E44: 205 | F44: 1 | G44: 1 | H44: 156 | J44: 3 | L44: 144 | M44: 1001 | N44: 10 | R44: 2050 | S44: 440 | T44: 400 | U44: 59
A45: 11210 | B45: 156 | D45: 2100 | E45: 210 | F45: 1 | G45: 1 | H45: 156 | J45: 3 | L45: 147 | M45: 1001 | N45: 10 | R45: 2100 | S45: 450 | T45: 410 | U45: 60
A46: 11215 | B46: 156 | D46: 2150 | E46: 215 | F46: 1 | G46: 1 | H46: 156 | J46: 3 | L46: 151 | M46: 1001 | N46: 10 | R46: 2150 | S46: 460 | T46: 420 | U46: 61
A47: 11220 | B47: 156 | D47: 2200 | E47: 220 | F47: 1 | G47: 1 | H47: 156 | J47: 3 | L47: 154 | M47: 1001 | N47: 10 | R47: 2200 | S47: 470 | T47: 430 | U47: 62
A48: 11225 | B48: 156 | D48: 2250 | E48: 225 | F48: 1 | G48: 1 | H48: 156 | J48: 3 | L48: 158 | M48: 1001 | N48: 10 | R48: 2250 | S48: 480 | T48: 440 | U48: 63
A49: 11230 | B49: 156 | D49: 2300 | E49: 230 | F49: 1 | G49: 1 | H49: 156 | J49: 3 | L49: 161 | M49: 1001 | N49: 10 | R49: 2300 | S49: 490 | T49: 450 | U49: 64
A50: 11235 | B50: 156 | D50: 2350 | E50: 235 | F50: 1 | G50: 1 | H50: 156 | J50: 3 | L50: 165 | M50: 1001 | N50: 10 | R50: 2350 | S50: 500 | T50: 460 | U50: 65
A51: 11240 | B51: 156 | D51: 2400 | E51: 240 | F51: 1 | G51: 1 | H51: 156 | J51: 3 | L51: 168 | M51: 1001 | N51: 10 | R51: 2400 | S51: 510 | T51: 470 | U51: 66
A52: 11245 | B52: 156 | D52: 2450 | E52: 245 | F52: 1 | G52: 1 | H52: 156 | J52: 3 | L52: 172 | M52: 1001 | N52: 10 | R52: 2450 | S52: 520 | T52: 480 | U52: 67
A53: 11250 | B53: 156 | D53: 2500 | E53: 250 | F53: 1 | G53: 1 | H53: 156 | J53: 3 | L53: 175 | M53: 1001 | N53: 10 | R53: 2500 | S53: 530 | T53: 490 | U53: 68
A54: 11255 | B54: 156 | D54: 2550 | E54: 255 | F54: 1 | G54: 1 | H54: 156 | J54: 3 | L54: 179 | M54: 1001 | N54: 10 | R54: 2550 | S54: 540 | T54: 500 | U54: 69
A55: 11260 | B55: 156 | D55: 2600 | E55: 260 | F55: 1 | G55: 1 | H55: 156 | J55: 3 | L55: 182 | M55: 1001 | N55: 10 | R55: 2600 | S55: 550 | T55: 510 | U55: 70
A56: 11265 | B56: 156 | D56: 2650 | E56: 265 | F56: 1 | G56: 1 | H56: 156 | J56: 3 | L56: 186 | M56: 1001 | N56: 10 | R56: 2650 | S56: 560 | T56: 520 | U56: 71
A57: 11270 | B57: 156 | D57: 2700 | E57: 270 | F57: 1 | G57: 1 | H57: 156 | J57: 3 | L57: 189 | M57: 1001 | N57: 10 | R57: 2700 | S57: 570 | T57: 530 | U57: 72
A58: 11275 | B58: 156 | D58: 2750 | E58: 275 | F58: 1 | G58: 1 | H58: 156 | J58: 3 | L58: 193 | M58: 1001 | N58: 10 | R58: 2750 | S58: 580 | T58: 540 | U58: 73
A59: 11280 | B59: 156 | D59: 2800 | E59: 280 | F59: 1 | G59: 1 | H59: 156 | J59: 3 | L59: 196 | M59: 1001 | N59: 10 | R59: 2800 | S59: 590 | T59: 550 | U59: 74
A60: 11285 | B60: 156 | D60: 2850 | E60: 285 | F60: 1 | G60: 1 | H60: 156 | J60: 3 | L60: 200 | M60: 1001 | N60: 10 | R60: 2850 | S60: 600 | T60: 560 | U60: 75
A61: 11290 | B61: 156 | D61: 2900 | E61: 290 | F61: 1 | G61: 1 | H61: 156 | J61: 3 | L61: 203 | M61: 1001 | N61: 10 | R61: 2900 | S61: 610 | T61: 570 | U61: 76
A62: 11295 | B62: 156 | D62: 2950 | E62: 295 | F62: 1 | G62: 1 | H62: 156 | J62: 3 | L62: 207 | M62: 1001 | N62: 10 | R62: 2950 | S62: 620 | T62: 580 | U62: 77
A63: 11300 | B63: 156 | D63: 3000 | E63: 300 | F63: 1 | G63: 1 | H63: 156 | J63: 3 | L63: 210 | M63: 1001 | N63: 10 | R63: 3000 | S63: 630 | T63: 590 | U63: 78
A64: 12010 | B64: 157 | D64: 100 | E64: 10 | F64: 1 | G64: 2 | H64: 157 | J64: 1;3 | L64: =_xlfn.TEXTJOIN(";",TRUE,ROUND(E64*3,0),ROUND(E64*0.7,0)) -> 30;7 | M64: 1001 | N64: 10 | R64: 100 | S64: 50 | T64: 10 | U64: 20
A65: 12015 | B65: 157 | D65: 150 | E65: 15 | F65: 1 | G65: 2 | H65: 157 | J65: 1;3 | L65: =_xlfn.TEXTJOIN(";",TRUE,ROUND(E65*3,0),ROUND(E65*0.7,0)) -> 45;11 | M65: 1001 | N65: 10 | R65: 150 | S65: 60 | T65: 20 | U65: 21
A66: 12020 | B66: 157 | D66: 200 | E66: 20 | F66: 1 | G66: 2 | H66: 157 | J66: 1;3 | L66: 60;14 | M66: 1001 | N66: 10 | R66: 200 | S66: 70 | T66: 30 | U66: 22
A67: 12025 | B67: 157 | D67: 250 | E67: 25 | F67: 1 | G67: 2 | H67: 157 | J67: 1;3 | L67: 75;18 | M67: 1001 | N67: 10 | R67: 250 | S67: 80 | T67: 40 | U67: 23
A68: 12030 | B68: 157 | D68: 300 | E68: 30 | F68: 1 | G68: 2 | H68: 157 | J68: 1;3 | L68: 90;21 | M68: 1001 | N68: 10 | R68: 300 | S68: 90 | T68: 50 | U68: 24
A69: 12035 | B69: 157 | D69: 350 | E69: 35 | F69: 1 | G69: 2 | H69: 157 | J69: 1;3 | L69: 105;25 | M69: 1001 | N69: 10 | R69: 350 | S69: 100 | T69: 60 | U69: 25
A70: =F70*10000+G70*1000+E70 -> 12040 | B70: 157 | D70: 400 | E70: 40 | F70: 1 | G70: 2 | H70: =B70 -> 157 | J70: 1;3 | L70: 120;28 | M70: 1001 | N70: 10 | R70: 400 | S70: 110 | T70: 70 | U70: 26
A71: 12045 | B71: 157 | D71: 450 | E71: 45 | F71: 1 | G71: 2 | H71: 157 | J71: 1;3 | L71: 135;32 | M71: 1001 | N71: 10 | R71: 450 | S71: 120 | T71: 80 | U71: 27
A72: 12050 | B72: 157 | D72: 500 | E72: 50 | F72: 1 | G72: 2 | H72: 157 | J72: 1;3 | L72: 150;35 | M72: 1001 | N72: 10 | R72: 500 | S72: 130 | T72: 90 | U72: 28
A73: 12055 | B73: 157 | D73: 550 | E73: 55 | F73: 1 | G73: 2 | H73: 157 | J73: 1;3 | L73: 165;39 | M73: 1001 | N73: 10 | R73: 550 | S73: 140 | T73: 100 | U73: 29
A74: 12060 | B74: 157 | D74: 600 | E74: 60 | F74: 1 | G74: 2 | H74: 157 | J74: 1;3 | L74: 180;42 | M74: 1001 | N74: 10 | R74: 600 | S74: 150 | T74: 110 | U74: 30
A75: 12065 | B75: 157 | D75: 650 | E75: 65 | F75: 1 | G75: 2 | H75: 157 | J75: 1;3 | L75: 195;46 | M75: 1001 | N75: 10 | R75: 650 | S75: 160 | T75: 120 | U75: 31
A76: 12070 | B76: 157 | D76: 700 | E76: 70 | F76: 1 | G76: 2 | H76: 157 | J76: 1;3 | L76: 210;49 | M76: 1001 | N76: 10 | R76: 700 | S76: 170 | T76: 130 | U76: 32
A77: 12075 | B77: 157 | D77: 750 | E77: 75 | F77: 1 | G77: 2 | H77: 157 | J77: 1;3 | L77: 225;53 | M77: 1001 | N77: 10 | R77: 750 | S77: 180 | T77: 140 | U77: 33
A78: 12080 | B78: 157 | D78: 800 | E78: 80 | F78: 1 | G78: 2 | H78: 157 | J78: 1;3 | L78: 240;56 | M78: 1001 | N78: 10 | R78: 800 | S78: 190 | T78: 150 | U78: 34
A79: 12085 | B79: 157 | D79: 850 | E79: 85 | F79: 1 | G79: 2 | H79: 157 | J79: 1;3 | L79: 255;60 | M79: 1001 | N79: 10 | R79: 850 | S79: 200 | T79: 160 | U79: 35
A80: 12090 | B80: 157 | D80: 900 | E80: 90 | F80: 1 | G80: 2 | H80: 157 | J80: 1;3 | L80: 270;63 | M80: 1001 | N80: 10 | R80: 900 | S80: 210 | T80: 170 | U80: 36
A81: 12095 | B81: 157 | D81: 950 | E81: 95 | F81: 1 | G81: 2 | H81: 157 | J81: 1;3 | L81: 285;67 | M81: 1001 | N81: 10 | R81: 950 | S81: 220 | T81: 180 | U81: 37
A82: 12100 | B82: 157 | D82: 1000 | E82: 100 | F82: 1 | G82: 2 | H82: 157 | J82: 1;3 | L82: 300;70 | M82: 1001 | N82: 10 | R82: 1000 | S82: 230 | T82: 190 | U82: 38
A83: 12105 | B83: 157 | D83: 1050 | E83: 105 | F83: 1 | G83: 2 | H83: 157 | J83: 1;3 | L83: 315;74 | M83: 1001 | N83: 10 | R83: 1050 | S83: 240 | T83: 200 | U83: 39
A84: 12110 | B84: 157 | D84: 1100 | E84: 110 | F84: 1 | G84: 2 | H84: 157 | J84: 1;3 | L84: 330;77 | M84: 1001 | N84: 10 | R84: 1100 | S84: 250 | T84: 210 | U84: 40
A85: 12115 | B85: 157 | D85: 1150 | E85: 115 | F85: 1 | G85: 2 | H85: 157 | J85: 1;3 | L85: 345;81 | M85: 1001 | N85: 10 | R85: 1150 | S85: 260 | T85: 220 | U85: 41
A86: 12120 | B86: 157 | D86: 1200 | E86: 120 | F86: 1 | G86: 2 | H86: 157 | J86: 1;3 | L86: 360;84 | M86: 1001 | N86: 10 | R86: 1200 | S86: 270 | T86: 230 | U86: 42
A87: 12125 | B87: 157 | D87: 1250 | E87: 125 | F87: 1 | G87: 2 | H87: 157 | J87: 1;3 | L87: 375;88 | M87: 1001 | N87: 10 | R87: 1250 | S87: 280 | T87: 240 | U87: 43
A88: 12130 | B88: 157 | D88: 1300 | E88: 130 | F88: 1 | G88: 2 | H88: 157 | J88: 1;3 | L88: 390;91 | M88: 1001 | N88: 10 | R88: 1300 | S88: 290 | T88: 250 | U88: 44
A89: 12135 | B89: 157 | D89: 1350 | E89: 135 | F89: 1 | G89: 2 | H89: 157 | J89: 1;3 | L89: 405;95 | M89: 1001 | N89: 10 | R89: 1350 | S89: 300 | T89: 260 | U89: 45
A90: 12140 | B90: 157 | D90: 1400 | E90: 140 | F90: 1 | G90: 2 | H90: 157 | J90: 1;3 | L90: 420;98 | M90: 1001 | N90: 10 | R90: 1400 | S90: 310 | T90: 270 | U90: 46
A91: 12145 | B91: 157 | D91: 1450 | E91: 145 | F91: 1 | G91: 2 | H91: 157 | J91: 1;3 | L91: 435;102 | M91: 1001 | N91: 10 | R91: 1450 | S91: 320 | T91: 280 | U91: 47
A92: 12150 | B92: 157 | D92: 1500 | E92: 150 | F92: 1 | G92: 2 | H92: 157 | J92: 1;3 | L92: 450;105 | M92: 1001 | N92: 10 | R92: 1500 | S92: 330 | T92: 290 | U92: 48
A93: 12155 | B93: 157 | D93: 1550 | E93: 155 | F93: 1 | G93: 2 | H93: 157 | J93: 1;3 | L93: 465;109 | M93: 1001 | N93: 10 | R93: 1550 | S93: 340 | T93: 300 | U93: 49
A94: 12160 | B94: 157 | D94: 1600 | E94: 160 | F94: 1 | G94: 2 | H94: 157 | J94: 1;3 | L94: 480;112 | M94: 1001 | N94: 10 | R94: 1600 | S94: 350 | T94: 310 | U94: 50
A95: 12165 | B95: 157 | D95: 1650 | E95: 165 | F95: 1 | G95: 2 | H95: 157 | J95: 1;3 | L95: 495;116 | M95: 1001 | N95: 10 | R95: 1650 | S95: 360 | T95: 320 | U95: 51
A96: 12170 | B96: 157 | D96: 1700 | E96: 170 | F96: 1 | G96: 2 | H96: 157 | J96: 1;3 | L96: 510;119 | M96: 1001 | N96: 10 | R96: 1700 | S96: 370 | T96: 330 | U96: 52
A97: 12175 | B97: 157 | D97: 1750 | E97: 175 | F97: 1 | G97: 2 | H97: 157 | J97: 1;3 | L97: =_xlfn.TEXTJOIN(";",TRUE,ROUND(E97*3,0),ROUND(E97*0.7,0)) -> 525;123 | M97: 1001 | N97: 10 | R97: 1750 | S97: 380 | T97: 340 | U97: 53
A98: 12180 | B98: 157 | D98: 1800 | E98: 180 | F98: 1 | G98: 2 | H98: 157 | J98: 1;3 | L98: 540;126 | M98: 1001 | N98: 10 | R98: 1800 | S98: 390 | T98: 350 | U98: 54
A99: 12185 | B99: 157 | D99: 1850 | E99: 185 | F99: 1 | G99: 2 | H99: 157 | J99: 1;3 | L99: 555;130 | M99: 1001 | N99: 10 | R99: 1850 | S99: 400 | T99: 360 | U99: 55
A100: 12190 | B100: 157 | D100: 1900 | E100: 190 | F100: 1 | G100: 2 | H100: 157 | J100: 1;3 | L100: 570;133 | M100: 1001 | N100: 10 | R100: 1900 | S100: 410 | T100: 370 | U100: 56
A101: 12195 | B101: 157 | D101: 1950 | E101: 195 | F101: 1 | G101: 2 | H101: 157 | J101: 1;3 | L101: 585;137 | M101: 1001 | N101: 10 | R101: 1950 | S101: 420 | T101: 380 | U101: 57
A102: 12200 | B102: 157 | D102: 2000 | E102: 200 | F102: 1 | G102: 2 | H102: 157 | J102: 1;3 | L102: 600;140 | M102: 1001 | N102: 10 | R102: 2000 | S102: 430 | T102: 390 | U102: 58
A103: 12205 | B103: 157 | D103: 2050 | E103: 205 | F103: 1 | G103: 2 | H103: 157 | J103: 1;3 | L103: 615;144 | M103: 1001 | N103: 10 | R103: 2050 | S103: 440 | T103: 400 | U103: 59
A104: 12210 | B104: 157 | D104: 2100 | E104: 210 | F104: 1 | G104: 2 | H104: 157 | J104: 1;3 | L104: 630;147 | M104: 1001 | N104: 10 | R104: 2100 | S104: 450 | T104: 410 | U104: 60
A105: 12215 | B105: 157 | D105: 2150 | E105: 215 | F105: 1 | G105: 2 | H105: 157 | J105: 1;3 | L105: 645;151 | M105: 1001 | N105: 10 | R105: 2150 | S105: 460 | T105: 420 | U105: 61
A106: 12220 | B106: 157 | D106: 2200 | E106: 220 | F106: 1 | G106: 2 | H106: 157 | J106: 1;3 | L106: 660;154 | M106: 1001 | N106: 10 | R106: 2200 | S106: 470 | T106: 430 | U106: 62
A107: 12225 | B107: 157 | D107: 2250 | E107: 225 | F107: 1 | G107: 2 | H107: 157 | J107: 1;3 | L107: 675;158 | M107: 1001 | N107: 10 | R107: 2250 | S107: 480 | T107: 440 | U107: 63
A108: 12230 | B108: 157 | D108: 2300 | E108: 230 | F108: 1 | G108: 2 | H108: 157 | J108: 1;3 | L108: 690;161 | M108: 1001 | N108: 10 | R108: 2300 | S108: 490 | T108: 450 | U108: 64
A109: 12235 | B109: 157 | D109: 2350 | E109: 235 | F109: 1 | G109: 2 | H109: 157 | J109: 1;3 | L109: 705;165 | M109: 1001 | N109: 10 | R109: 2350 | S109: 500 | T109: 460 | U109: 65
A110: 12240 | B110: 157 | D110: 2400 | E110: 240 | F110: 1 | G110: 2 | H110: 157 | J110: 1;3 | L110: 720;168 | M110: 1001 | N110: 10 | R110: 2400 | S110: 510 | T110: 470 | U110: 66
A111: 12245 | B111: 157 | D111: 2450 | E111: 245 | F111: 1 | G111: 2 | H111: 157 | J111: 1;3 | L111: 735;172 | M111: 1001 | N111: 10 | R111: 2450 | S111: 520 | T111: 480 | U111: 67
A112: 12250 | B112: 157 | D112: 2500 | E112: 250 | F112: 1 | G112: 2 | H112: 157 | J112: 1;3 | L112: 750;175 | M112: 1001 | N112: 10 | R112: 2500 | S112: 530 | T112: 490 | U112: 68
A113: 12255 | B113: 157 | D113: 2550 | E113: 255 | F113: 1 | G113: 2 | H113: 157 | J113: 1;3 | L113: 765;179 | M113: 1001 | N113: 10 | R113: 2550 | S113: 540 | T113: 500 | U113: 69
A114: 12260 | B114: 157 | D114: 2600 | E114: 260 | F114: 1 | G114: 2 | H114: 157 | J114: 1;3 | L114: 780;182 | M114: 1001 | N114: 10 | R114: 2600 | S114: 550 | T114: 510 | U114: 70
A115: 12265 | B115: 157 | D115: 2650 | E115: 265 | F115: 1 | G115: 2 | H115: 157 | J115: 1;3 | L115: 795;186 | M115: 1001 | N115: 10 | R115: 2650 | S115: 560 | T115: 520 | U115: 71
A116: 12270 | B116: 157 | D116: 2700 | E116: 270 | F116: 1 | G116: 2 | H116: 157 | J116: 1;3 | L116: 810;189 | M116: 1001 | N116: 10 | R116: 2700 | S116: 570 | T116: 530 | U116: 72
A117: 12275 | B117: 157 | D117: 2750 | E117: 275 | F117: 1 | G117: 2 | H117: 157 | J117: 1;3 | L117: 825;193 | M117: 1001 | N117: 10 | R117: 2750 | S117: 580 | T117: 540 | U117: 73
A118: 12280 | B118: 157 | D118: 2800 | E118: 280 | F118: 1 | G118: 2 | H118: 157 | J118: 1;3 | L118: 840;196 | M118: 1001 | N118: 10 | R118: 2800 | S118: 590 | T118: 550 | U118: 74
A119: 12285 | B119: 157 | D119: 2850 | E119: 285 | F119: 1 | G119: 2 | H119: 157 | J119: 1;3 | L119: 855;200 | M119: 1001 | N119: 10 | R119: 2850 | S119: 600 | T119: 560 | U119: 75
A120: 12290 | B120: 157 | D120: 2900 | E120: 290 | F120: 1 | G120: 2 | H120: 157 | J120: 1;3 | L120: 870;203 | M120: 1001 | N120: 10 | R120: 2900 | S120: 610 | T120: 570 | U120: 76
A121: 12295 | B121: 157 | D121: 2950 | E121: 295 | F121: 1 | G121: 2 | H121: 157 | J121: 1;3 | L121: 885;207 | M121: 1001 | N121: 10 | R121: 2950 | S121: 620 | T121: 580 | U121: 77
A122: 12300 | B122: 157 | D122: 3000 | E122: 300 | F122: 1 | G122: 2 | H122: 157 | J122: 1;3 | L122: 900;210 | M122: 1001 | N122: 10 | R122: 3000 | S122: 630 | T122: 590 | U122: 78
A123: 13010 | B123: 158 | D123: 100 | E123: 10 | F123: 1 | G123: 3 | H123: 158 | J123: 2;3 | L123: =_xlfn.TEXTJOIN(";",TRUE,ROUND(E123*1,0),ROUND(E123*0.3,0)) -> 10;3 | M123: 1001 | N123: 10 | R123: 100 | S123: 50 | T123: 10 | U123: 20
A124: 13015 | B124: 158 | D124: 150 | E124: 15 | F124: 1 | G124: 3 | H124: 158 | J124: 2;3 | L124: =_xlfn.TEXTJOIN(";",TRUE,ROUND(E124*1,0),ROUND(E124*0.3,0)) -> 15;5 | M124: 1001 | N124: 10 | R124: 150 | S124: 60 | T124: 20 | U124: 21
A125: 13020 | B125: 158 | D125: 200 | E125: 20 | F125: 1 | G125: 3 | H125: 158 | J125: 2;3 | L125: 20;6 | M125: 1001 | N125: 10 | R125: 200 | S125: 70 | T125: 30 | U125: 22
A126: 13025 | B126: 158 | D126: 250 | E126: 25 | F126: 1 | G126: 3 | H126: 158 | J126: 2;3 | L126: 25;8 | M126: 1001 | N126: 10 | R126: 250 | S126: 80 | T126: 40 | U126: 23
A127: 13030 | B127: 158 | D127: 300 | E127: 30 | F127: 1 | G127: 3 | H127: 158 | J127: 2;3 | L127: 30;9 | M127: 1001 | N127: 10 | R127: 300 | S127: 90 | T127: 50 | U127: 24
A128: 13035 | B128: 158 | D128: 350 | E128: 35 | F128: 1 | G128: 3 | H128: 158 | J128: 2;3 | L128: 35;11 | M128: 1001 | N128: 10 | R128: 350 | S128: 100 | T128: 60 | U128: 25
A129: 13040 | B129: 158 | D129: 400 | E129: 40 | F129: 1 | G129: 3 | H129: 158 | J129: 2;3 | L129: 40;12 | M129: 1001 | N129: 10 | R129: 400 | S129: 110 | T129: 70 | U129: 26
A130: 13045 | B130: 158 | D130: 450 | E130: 45 | F130: 1 | G130: 3 | H130: 158 | J130: 2;3 | L130: 45;14 | M130: 1001 | N130: 10 | R130: 450 | S130: 120 | T130: 80 | U130: 27
A131: 13050 | B131: 158 | D131: 500 | E131: 50 | F131: 1 | G131: 3 | H131: 158 | J131: 2;3 | L131: 50;15 | M131: 1001 | N131: 10 | R131: 500 | S131: 130 | T131: 90 | U131: 28
A132: 13055 | B132: 158 | D132: 550 | E132: 55 | F132: 1 | G132: 3 | H132: 158 | J132: 2;3 | L132: 55;17 | M132: 1001 | N132: 10 | R132: 550 | S132: 140 | T132: 100 | U132: 29
A133: 13060 | B133: 158 | D133: 600 | E133: 60 | F133: 1 | G133: 3 | H133: 158 | J133: 2;3 | L133: 60;18 | M133: 1001 | N133: 10 | R133: 600 | S133: 150 | T133: 110 | U133: 30
A134: =F134*10000+G134*1000+E134 -> 13065 | B134: 158 | D134: 650 | E134: 65 | F134: 1 | G134: 3 | H134: =B134 -> 158 | J134: 2;3 | L134: 65;20 | M134: 1001 | N134: 10 | R134: 650 | S134: 160 | T134: 120 | U134: 31
A135: 13070 | B135: 158 | D135: 700 | E135: 70 | F135: 1 | G135: 3 | H135: 158 | J135: 2;3 | L135: 70;21 | M135: 1001 | N135: 10 | R135: 700 | S135: 170 | T135: 130 | U135: 32
A136: 13075 | B136: 158 | D136: 750 | E136: 75 | F136: 1 | G136: 3 | H136: 158 | J136: 2;3 | L136: 75;23 | M136: 1001 | N136: 10 | R136: 750 | S136: 180 | T136: 140 | U136: 33
A137: 13080 | B137: 158 | D137: 800 | E137: 80 | F137: 1 | G137: 3 | H137: 158 | J137: 2;3 | L137: 80;24 | M137: 1001 | N137: 10 | R137: 800 | S137: 190 | T137: 150 | U137: 34
A138: 13085 | B138: 158 | D138: 850 | E138: 85 | F138: 1 | G138: 3 | H138: 158 | J138: 2;3 | L138: 85;26 | M138: 1001 | N138: 10 | R138: 850 | S138: 200 | T138: 160 | U138: 35
A139: 13090 | B139: 158 | D139: 900 | E139: 90 | F139: 1 | G139: 3 | H139: 158 | J139: 2;3 | L139: 90;27 | M139: 1001 | N139: 10 | R139: 900 | S139: 210 | T139: 170 | U139: 36
A140: 13095 | B140: 158 | D140: 950 | E140: 95 | F140: 1 | G140: 3 | H140: 158 | J140: 2;3 | L140: 95;29 | M140: 1001 | N140: 10 | R140: 950 | S140: 220 | T140: 180 | U140: 37
A141: 13100 | B141: 158 | D141: 1000 | E141: 100 | F141: 1 | G141: 3 | H141: 158 | J141: 2;3 | L141: 100;30 | M141: 1001 | N141: 10 | R141: 1000 | S141: 230 | T141: 190 | U141: 38
A142: 13105 | B142: 158 | D142: 1050 | E142: 105 | F142: 1 | G142: 3 | H142: 158 | J142: 2;3 | L142: 105;32 | M142: 1001 | N142: 10 | R142: 1050 | S142: 240 | T142: 200 | U142: 39
A143: 13110 | B143: 158 | D143: 1100 | E143: 110 | F143: 1 | G143: 3 | H143: 158 | J143: 2;3 | L143: 110;33 | M143: 1001 | N143: 10 | R143: 1100 | S143: 250 | T143: 210 | U143: 40
A144: 13115 | B144: 158 | D144: 1150 | E144: 115 | F144: 1 | G144: 3 | H144: 158 | J144: 2;3 | L144: 115;35 | M144: 1001 | N144: 10 | R144: 1150 | S144: 260 | T144: 220 | U144: 41
A145: 13120 | B145: 158 | D145: 1200 | E145: 120 | F145: 1 | G145: 3 | H145: 158 | J145: 2;3 | L145: 120;36 | M145: 1001 | N145: 10 | R145: 1200 | S145: 270 | T145: 230 | U145: 42
A146: 13125 | B146: 158 | D146: 1250 | E146: 125 | F146: 1 | G146: 3 | H146: 158 | J146: 2;3 | L146: 125;38 | M146: 1001 | N146: 10 | R146: 1250 | S146: 280 | T146: 240 | U146: 43
A147: 13130 | B147: 158 | D147: 1300 | E147: 130 | F147: 1 | G147: 3 | H147: 158 | J147: 2;3 | L147: 130;39 | M147: 1001 | N147: 10 | R147: 1300 | S147: 290 | T147: 250 | U147: 44
A148: 13135 | B148: 158 | D148: 1350 | E148: 135 | F148: 1 | G148: 3 | H148: 158 | J148: 2;3 | L148: 135;41 | M148: 1001 | N148: 10 | R148: 1350 | S148: 300 | T148: 260 | U148: 45
A149: 13140 | B149: 158 | D149: 1400 | E149: 140 | F149: 1 | G149: 3 | H149: 158 | J149: 2;3 | L149: 140;42 | M149: 1001 | N149: 10 | R149: 1400 | S149: 310 | T149: 270 | U149: 46
A150: 13145 | B150: 158 | D150: 1450 | E150: 145 | F150: 1 | G150: 3 | H150: 158 | J150: 2;3 | L150: 145;44 | M150: 1001 | N150: 10 | R150: 1450 | S150: 320 | T150: 280 | U150: 47
A151: 13150 | B151: 158 | D151: 1500 | E151: 150 | F151: 1 | G151: 3 | H151: 158 | J151: 2;3 | L151: 150;45 | M151: 1001 | N151: 10 | R151: 1500 | S151: 330 | T151: 290 | U151: 48
A152: 13155 | B152: 158 | D152: 1550 | E152: 155 | F152: 1 | G152: 3 | H152: 158 | J152: 2;3 | L152: 155;47 | M152: 1001 | N152: 10 | R152: 1550 | S152: 340 | T152: 300 | U152: 49
A153: 13160 | B153: 158 | D153: 1600 | E153: 160 | F153: 1 | G153: 3 | H153: 158 | J153: 2;3 | L153: 160;48 | M153: 1001 | N153: 10 | R153: 1600 | S153: 350 | T153: 310 | U153: 50
A154: 13165 | B154: 158 | D154: 1650 | E154: 165 | F154: 1 | G154: 3 | H154: 158 | J154: 2;3 | L154: 165;50 | M154: 1001 | N154: 10 | R154: 1650 | S154: 360 | T154: 320 | U154: 51
A155: 13170 | B155: 158 | D155: 1700 | E155: 170 | F155: 1 | G155: 3 | H155: 158 | J155: 2;3 | L155: 170;51 | M155: 1001 | N155: 10 | R155: 1700 | S155: 370 | T155: 330 | U155: 52
A156: 13175 | B156: 158 | D156: 1750 | E156: 175 | F156: 1 | G156: 3 | H156: 158 | J156: 2;3 | L156: =_xlfn.TEXTJOIN(";",TRUE,ROUND(E156*1,0),ROUND(E156*0.3,0)) -> 175;53 | M156: 1001 | N156: 10 | R156: 1750 | S156: 380 | T156: 340 | U156: 53
A157: 13180 | B157: 158 | D157: 1800 | E157: 180 | F157: 1 | G157: 3 | H157: 158 | J157: 2;3 | L157: 180;54 | M157: 1001 | N157: 10 | R157: 1800 | S157: 390 | T157: 350 | U157: 54
A158: 13185 | B158: 158 | D158: 1850 | E158: 185 | F158: 1 | G158: 3 | H158: 158 | J158: 2;3 | L158: 185;56 | M158: 1001 | N158: 10 | R158: 1850 | S158: 400 | T158: 360 | U158: 55
A159: 13190 | B159: 158 | D159: 1900 | E159: 190 | F159: 1 | G159: 3 | H159: 158 | J159: 2;3 | L159: 190;57 | M159: 1001 | N159: 10 | R159: 1900 | S159: 410 | T159: 370 | U159: 56
A160: 13195 | B160: 158 | D160: 1950 | E160: 195 | F160: 1 | G160: 3 | H160: 158 | J160: 2;3 | L160: 195;59 | M160: 1001 | N160: 10 | R160: 1950 | S160: 420 | T160: 380 | U160: 57
A161: 13200 | B161: 158 | D161: 2000 | E161: 200 | F161: 1 | G161: 3 | H161: 158 | J161: 2;3 | L161: 200;60 | M161: 1001 | N161: 10 | R161: 2000 | S161: 430 | T161: 390 | U161: 58
A162: 13205 | B162: 158 | D162: 2050 | E162: 205 | F162: 1 | G162: 3 | H162: 158 | J162: 2;3 | L162: 205;62 | M162: 1001 | N162: 10 | R162: 2050 | S162: 440 | T162: 400 | U162: 59
A163: 13210 | B163: 158 | D163: 2100 | E163: 210 | F163: 1 | G163: 3 | H163: 158 | J163: 2;3 | L163: 210;63 | M163: 1001 | N163: 10 | R163: 2100 | S163: 450 | T163: 410 | U163: 60
A164: 13215 | B164: 158 | D164: 2150 | E164: 215 | F164: 1 | G164: 3 | H164: 158 | J164: 2;3 | L164: 215;65 | M164: 1001 | N164: 10 | R164: 2150 | S164: 460 | T164: 420 | U164: 61
A165: 13220 | B165: 158 | D165: 2200 | E165: 220 | F165: 1 | G165: 3 | H165: 158 | J165: 2;3 | L165: 220;66 | M165: 1001 | N165: 10 | R165: 2200 | S165: 470 | T165: 430 | U165: 62
A166: 13225 | B166: 158 | D166: 2250 | E166: 225 | F166: 1 | G166: 3 | H166: 158 | J166: 2;3 | L166: 225;68 | M166: 1001 | N166: 10 | R166: 2250 | S166: 480 | T166: 440 | U166: 63
A167: 13230 | B167: 158 | D167: 2300 | E167: 230 | F167: 1 | G167: 3 | H167: 158 | J167: 2;3 | L167: 230;69 | M167: 1001 | N167: 10 | R167: 2300 | S167: 490 | T167: 450 | U167: 64
A168: 13235 | B168: 158 | D168: 2350 | E168: 235 | F168: 1 | G168: 3 | H168: 158 | J168: 2;3 | L168: 235;71 | M168: 1001 | N168: 10 | R168: 2350 | S168: 500 | T168: 460 | U168: 65
A169: 13240 | B169: 158 | D169: 2400 | E169: 240 | F169: 1 | G169: 3 | H169: 158 | J169: 2;3 | L169: 240;72 | M169: 1001 | N169: 10 | R169: 2400 | S169: 510 | T169: 470 | U169: 66
A170: 13245 | B170: 158 | D170: 2450 | E170: 245 | F170: 1 | G170: 3 | H170: 158 | J170: 2;3 | L170: 245;74 | M170: 1001 | N170: 10 | R170: 2450 | S170: 520 | T170: 480 | U170: 67
A171: 13250 | B171: 158 | D171: 2500 | E171: 250 | F171: 1 | G171: 3 | H171: 158 | J171: 2;3 | L171: 250;75 | M171: 1001 | N171: 10 | R171: 2500 | S171: 530 | T171: 490 | U171: 68
A172: 13255 | B172: 158 | D172: 2550 | E172: 255 | F172: 1 | G172: 3 | H172: 158 | J172: 2;3 | L172: 255;77 | M172: 1001 | N172: 10 | R172: 2550 | S172: 540 | T172: 500 | U172: 69
A173: 13260 | B173: 158 | D173: 2600 | E173: 260 | F173: 1 | G173: 3 | H173: 158 | J173: 2;3 | L173: 260;78 | M173: 1001 | N173: 10 | R173: 2600 | S173: 550 | T173: 510 | U173: 70
A174: 13265 | B174: 158 | D174: 2650 | E174: 265 | F174: 1 | G174: 3 | H174: 158 | J174: 2;3 | L174: 265;80 | M174: 1001 | N174: 10 | R174: 2650 | S174: 560 | T174: 520 | U174: 71
A175: 13270 | B175: 158 | D175: 2700 | E175: 270 | F175: 1 | G175: 3 | H175: 158 | J175: 2;3 | L175: 270;81 | M175: 1001 | N175: 10 | R175: 2700 | S175: 570 | T175: 530 | U175: 72
A176: 13275 | B176: 158 | D176: 2750 | E176: 275 | F176: 1 | G176: 3 | H176: 158 | J176: 2;3 | L176: 275;83 | M176: 1001 | N176: 10 | R176: 2750 | S176: 580 | T176: 540 | U176: 73
A177: 13280 | B177: 158 | D177: 2800 | E177: 280 | F177: 1 | G177: 3 | H177: 158 | J177: 2;3 | L177: 280;84 | M177: 1001 | N177: 10 | R177: 2800 | S177: 590 | T177: 550 | U177: 74
A178: 13285 | B178: 158 | D178: 2850 | E178: 285 | F178: 1 | G178: 3 | H178: 158 | J178: 2;3 | L178: 285;86 | M178: 1001 | N178: 10 | R178: 2850 | S178: 600 | T178: 560 | U178: 75
A179: 13290 | B179: 158 | D179: 2900 | E179: 290 | F179: 1 | G179: 3 | H179: 158 | J179: 2;3 | L179: 290;87 | M179: 1001 | N179: 10 | R179: 2900 | S179: 610 | T179: 570 | U179: 76
A180: 13295 | B180: 158 | D180: 2950 | E180: 295 | F180: 1 | G180: 3 | H180: 158 | J180: 2;3 | L180: 295;89 | M180: 1001 | N180: 10 | R180: 2950 | S180: 620 | T180: 580 | U180: 77
A181: 13300 | B181: 158 | D181: 3000 | E181: 300 | F181: 1 | G181: 3 | H181: 158 | J181: 2;3 | L181: 300;90 | M181: 1001 | N181: 10 | R181: 3000 | S181: 630 | T181: 590 | U181: 78
A182: 14010 | B182: 159 | D182: 100 | E182: 10 | F182: 1 | G182: 4 | H182: 159 | J182: 1;2 | L182: =_xlfn.TEXTJOIN(";",TRUE,ROUND(E182*2,0),ROUND(E182*0.7,0)) -> 20;7 | M182: 1001 | N182: 10 | R182: 100 | S182: 50 | T182: 10 | U182: 20
A183: 14015 | B183: 159 | D183: 150 | E183: 15 | F183: 1 | G183: 4 | H183: 159 | J183: 1;2 | L183: =_xlfn.TEXTJOIN(";",TRUE,ROUND(E183*2,0),ROUND(E183*0.7,0)) -> 30;11 | M183: 1001 | N183: 10 | R183: 150 | S183: 60 | T183: 20 | U183: 21
A184: 14020 | B184: 159 | D184: 200 | E184: 20 | F184: 1 | G184: 4 | H184: 159 | J184: 1;2 | L184: 40;14 | M184: 1001 | N184: 10 | R184: 200 | S184: 70 | T184: 30 | U184: 22
A185: 14025 | B185: 159 | D185: 250 | E185: 25 | F185: 1 | G185: 4 | H185: 159 | J185: 1;2 | L185: 50;18 | M185: 1001 | N185: 10 | R185: 250 | S185: 80 | T185: 40 | U185: 23
A186: 14030 | B186: 159 | D186: 300 | E186: 30 | F186: 1 | G186: 4 | H186: 159 | J186: 1;2 | L186: 60;21 | M186: 1001 | N186: 10 | R186: 300 | S186: 90 | T186: 50 | U186: 24
A187: 14035 | B187: 159 | D187: 350 | E187: 35 | F187: 1 | G187: 4 | H187: 159 | J187: 1;2 | L187: 70;25 | M187: 1001 | N187: 10 | R187: 350 | S187: 100 | T187: 60 | U187: 25
A188: 14040 | B188: 159 | D188: 400 | E188: 40 | F188: 1 | G188: 4 | H188: 159 | J188: 1;2 | L188: 80;28 | M188: 1001 | N188: 10 | R188: 400 | S188: 110 | T188: 70 | U188: 26
A189: 14045 | B189: 159 | D189: 450 | E189: 45 | F189: 1 | G189: 4 | H189: 159 | J189: 1;2 | L189: 90;32 | M189: 1001 | N189: 10 | R189: 450 | S189: 120 | T189: 80 | U189: 27
A190: 14050 | B190: 159 | D190: 500 | E190: 50 | F190: 1 | G190: 4 | H190: 159 | J190: 1;2 | L190: 100;35 | M190: 1001 | N190: 10 | R190: 500 | S190: 130 | T190: 90 | U190: 28
A191: 14055 | B191: 159 | D191: 550 | E191: 55 | F191: 1 | G191: 4 | H191: 159 | J191: 1;2 | L191: 110;39 | M191: 1001 | N191: 10 | R191: 550 | S191: 140 | T191: 100 | U191: 29
A192: 14060 | B192: 159 | D192: 600 | E192: 60 | F192: 1 | G192: 4 | H192: 159 | J192: 1;2 | L192: 120;42 | M192: 1001 | N192: 10 | R192: 600 | S192: 150 | T192: 110 | U192: 30
A193: 14065 | B193: 159 | D193: 650 | E193: 65 | F193: 1 | G193: 4 | H193: 159 | J193: 1;2 | L193: 130;46 | M193: 1001 | N193: 10 | R193: 650 | S193: 160 | T193: 120 | U193: 31
A194: 14070 | B194: 159 | D194: 700 | E194: 70 | F194: 1 | G194: 4 | H194: 159 | J194: 1;2 | L194: 140;49 | M194: 1001 | N194: 10 | R194: 700 | S194: 170 | T194: 130 | U194: 32
A195: 14075 | B195: 159 | D195: 750 | E195: 75 | F195: 1 | G195: 4 | H195: 159 | J195: 1;2 | L195: 150;53 | M195: 1001 | N195: 10 | R195: 750 | S195: 180 | T195: 140 | U195: 33
A196: 14080 | B196: 159 | D196: 800 | E196: 80 | F196: 1 | G196: 4 | H196: 159 | J196: 1;2 | L196: 160;56 | M196: 1001 | N196: 10 | R196: 800 | S196: 190 | T196: 150 | U196: 34
A197: 14085 | B197: 159 | D197: 850 | E197: 85 | F197: 1 | G197: 4 | H197: 159 | J197: 1;2 | L197: 170;60 | M197: 1001 | N197: 10 | R197: 850 | S197: 200 | T197: 160 | U197: 35
A198: =F198*10000+G198*1000+E198 -> 14090 | B198: 159 | D198: 900 | E198: 90 | F198: 1 | G198: 4 | H198: =B198 -> 159 | J198: 1;2 | L198: 180;63 | M198: 1001 | N198: 10 | R198: 900 | S198: 210 | T198: 170 | U198: 36
A199: 14095 | B199: 159 | D199: 950 | E199: 95 | F199: 1 | G199: 4 | H199: 159 | J199: 1;2 | L199: 190;67 | M199: 1001 | N199: 10 | R199: 950 | S199: 220 | T199: 180 | U199: 37
A200: 14100 | B200: 159 | D200: 1000 | E200: 100 | F200: 1 | G200: 4 | H200: 159 | J200: 1;2 | L200: 200;70 | M200: 1001 | N200: 10 | R200: 1000 | S200: 230 | T200: 190 | U200: 38
A201: 14105 | B201: 159 | D201: 1050 | E201: 105 | F201: 1 | G201: 4 | H201: 159 | J201: 1;2 | L201: 210;74 | M201: 1001 | N201: 10 | R201: 1050 | S201: 240 | T201: 200 | U201: 39
... 983 more rows
